bitfinex-derivatives/quotes_ETHF0:USTF0_20251009
["timestamp","ask_amount","ask_price","bid_price","bid_amount"]
[1760016617195,0.40954,4393.4,4393.2,0.3426]
[1760016617401,0.229,4393.3,4393.2,0.3426]
[1760016617601,3.2078,4393.7,4393.6,0.3426]
[1760016617809,3.4368,4393.7,4393.6,0.3426]
[1760016618008,3.2078,4394.2,4394.1,0.75207]
[1760016618209,3.2078,4394.2,4394.1,5.75207]
[1760016618415,6.11177742,4394.8,4394.7,0.3426]
[1760016618719,3.2078,4394.8,4394.7,0.3426]
[1760016619006,3.4368,4394.8,4394.7,0.3426]
[1760016622020,0.40946,4394.2,4394.0,0.1355]
[1760016622212,0.229,4394.1,4394.0,0.1355]
[1760016623015,0.4095,4393.8,4393.7,0.3426]
[1760016623217,0.6385,4393.8,4393.6,0.00198226]
[1760016623413,3.2078,4393.7,4393.6,0.00198226]
[1760016623617,3.2078,4393.7,4393.6,0.34458226]
[1760016623918,1.02549328,4394.9,4393.6,0.34458226]
[1760016623919,3.2078,4394.3,4393.6,0.34458226]
[1760016624117,0.229,4394.2,4394.1,0.3426]
[1760016624311,0.40942,4394.7,4394.6,0.3426]
[1760016624513,0.229,4394.7,4394.0,0.1355]
[1760016624713,0.40946,4394.2,4394.0,0.1355]
[1760016624913,0.40946,4394.2,4394.1,0.3426]
[1760016625217,0.4095,4393.8,4393.6,0.00198226]
[1760016625417,3.4368,4393.7,4393.6,0.00198226]
[1760016625611,6.34476399,4393.7,4393.6,0.00198226]
[1760016626418,6.34476399,4393.7,4393.0,0.1319]
[1760016626419,0.40956,4393.1,4393.0,0.1319]
[1760016626621,3.4368,4393.1,4393.0,0.4745]
[1760016627019,0.229,4393.1,4393.0,0.4745]
[1760016627419,0.229,4393.1,4393.0,0.4763526]
[1760016627616,3.2078,4393.6,4393.0,0.1337526]
[1760016627822,3.2078,4393.6,4393.5,0.4781]
[1760016628022,3.4368,4393.6,4393.5,0.4781]
[1760016628720,3.2078,4393.6,4393.5,0.4781]
[1760016629222,0.182,4394.1,4394.0,0.4781]
[1760016629519,3.4368,4394.8,4394.7,0.3426]
[1760016629919,0.40942,4394.7,4394.5,0.1355]
[1760016630114,3.4368,4394.8,4394.5,0.1355]
[1760016630115,0.229,4394.6,4394.5,0.1355]
[1760016630320,0.229,4394.6,4394.5,0.4781]
[1760016630520,3.2078,4394.8,4394.7,0.3426]
[1760016630717,3.2078,4395.3,4394.8,0.75201]
[1760016630923,0.229,4395.2,4394.8,0.75201]
[1760016631919,0.40939,4395.0,4394.8,0.3426]
[1760016632322,0.23099328,4394.9,4394.8,0.3426]
[1760016632819,0.40942,4394.6,4394.5,0.4781]
[1760016633025,0.63842,4394.6,4394.5,0.1355]
[1760016633219,3.84622,4394.6,4394.5,0.1355]
[1760016633619,3.84622,4394.6,4394.5,0.4781]
[1760016634018,0.40947,4394.1,4394.0,0.4781]
[1760016634219,0.63847,4394.1,4394.0,0.4781]
[1760016634421,3.84627,4394.1,4394.0,0.4781]
[1760016634628,3.84627,4394.1,4394.0,0.1355]
[1760016635220,3.84627,4394.1,4394.0,0.4781]
[1760016635827,3.4368,4394.1,4394.0,0.4781]
[1760016637324,3.4368,4394.1,4393.5,0.4781]
[1760016637325,1.02371,4394.0,4393.5,0.4781]
[1760016637528,0.40952,4393.6,4393.5,0.4781]
[1760016637828,0.63852,4393.6,4393.5,0.4781]
[1760016638526,0.40956,4393.2,4393.1,0.3426]
[1760016638729,0.63856,4393.2,4393.0,0.1337526]
[1760016639230,0.40957,4393.0,4392.9,0.02276426]
[1760016639626,3.30167755,4393.0,4392.9,0.02276426]
[1760016640228,0.63857,4393.0,4392.9,0.36770304]
[1760016640624,0.40957,4393.0,4392.9,0.02510304]
[1760016640930,0.63857,4393.0,4392.9,0.02510304]
[1760016641132,3.63642406,4393.0,4392.9,0.02510304]
[1760016642625,3.63642406,4393.0,4392.9,0.35790304]
[1760016642830,3.63642406,4393.0,4392.9,0.02510304]
[1760016643430,0.40966,4392.1,4392.0,0.4683]
[1760016643631,0.63866,4392.1,4392.0,0.4683]
[1760016644437,3.2078,4392.5,4392.1,0.3334]
[1760016644639,0.40965,4392.2,4392.1,0.3334]
[1760016645136,0.63865,4392.2,4392.0,0.13812783]
[1760016645739,2.91510297,4392.1,4392.0,0.00262783]
[1760016645937,0.229,4392.1,4392.0,0.13252783]
[1760016646136,3.14410297,4392.1,4392.0,0.00262783]
[1760016647834,0.40973,4391.3,4391.2,0.3334]
[1760016648038,0.40975,4391.1,4391.0,0.4689]
[1760016648235,0.4098,4390.7,4390.6,0.3334]
[1760016648435,0.40984,4390.2,4390.1,0.3334]
[1760016648737,0.63884,4390.2,4390.1,0.3334]
[1760016648940,0.64102869,4390.2,4390.1,0.00281313]
[1760016649134,0.41202869,4390.2,4390.1,0.00281313]
[1760016649330,0.64102869,4390.2,4390.1,0.00281313]
[1760016650036,0.00218869,4390.2,4390.1,5.74605313]
[1760016650733,0.41202869,4390.2,4390.1,0.00281313]
[1760016651037,0.40988,4389.7,4389.6,0.3334]
[1760016651238,0.40988,4389.7,4389.3,3.2078]
[1760016651239,0.40991,4389.4,4389.3,3.2078]
[1760016651430,0.63891,4389.4,4389.3,3.2078]
[1760016651630,0.40992,4389.3,4389.1,0.3334]
[1760016652143,0.229,4389.4,4389.2,0.3334]
[1760016652335,0.229,4389.4,4389.1,0.00257178]
[1760016652336,0.40993,4389.2,4389.1,0.00257178]
[1760016652532,3.61773,4389.2,4389.1,0.00257178]
[1760016652736,6.64360079,4389.2,4389.1,0.00257178]
[1760016653139,6.64360079,4389.2,4388.1,3.2078]
[1760016653140,11.23367079,4389.2,4388.1,3.2078]
[1760016653336,0.41002,4388.2,4388.1,3.2078]
[1760016653538,0.229,4388.2,4388.1,3.5412]
[1760016653744,3.61778,4388.7,4388.6,0.3334]
[1760016653937,3.4368,4388.7,4388.6,0.3334]
[1760016654241,3.4368,4388.7,4388.6,0.33616149]
[1760016654636,3.2078,4388.7,4388.6,0.33616149]
[1760016654836,3.4368,4388.7,4388.6,0.33616149]
[1760016655131,3.2078,4388.7,4388.6,0.33616149]
[1760016655337,3.2078,4389.2,4389.0,0.1299]
[1760016655641,3.2078,4389.2,4389.1,0.3334]
[1760016655837,3.4368,4389.2,4389.1,0.3334]
[1760016656044,3.2078,4389.2,4389.1,0.3334]
[1760016656240,0.229,4389.2,4389.1,0.3334]
[1760016656443,3.2078,4389.7,4389.1,0.3334]
[1760016656646,3.2078,4389.7,4389.6,0.3334]
[1760016656834,3.4368,4389.7,4389.6,0.3334]
[1760016657035,3.2078,4389.7,4389.6,0.3334]
[1760016657234,3.20998869,4390.2,4390.1,0.74324]
[1760016657538,3.43998869,4390.2,4390.1,0.3334]
[1760016657842,3.43998869,4390.2,4390.0,0.1299]
[1760016658042,3.43998869,4390.2,4390.1,0.3334]
[1760016658448,6.19199338,4390.2,4389.5,0.4633]
[1760016658747,6.19199338,4390.2,4389.7,0.3334]
[1760016658936,3.20998869,4390.2,4390.1,0.3334]
[1760016659138,3.43998869,4390.2,4390.1,0.3334]
[1760016659345,3.20998869,4390.2,4390.1,0.3334]
[1760016659544,0.23218869,4390.2,4390.1,0.3334]
[1760016660344,0.00218869,4390.2,4390.1,0.3334]
[1760016660544,0.00218869,4390.2,4390.1,5.3334]
[1760016661044,0.40984,4390.1,4390.0,0.1299]
[1760016661248,0.23,4390.1,4389.5,0.1299]
[1760016661543,1.02483,4389.3,4388.6,0.33616149]
[1760016661743,3.2078,4388.7,4388.6,0.00276149]
[1760016661946,3.4378,4388.7,4388.6,0.00276149]
[1760016662145,6.3928908,4388.7,4388.6,0.00276149]
[1760016662338,11.3928908,4388.7,4388.6,0.00276149]
[1760016662549,11.3928908,4388.7,4388.0,0.1299]
[1760016662742,3.61783,4388.1,4388.0,0.1299]
[1760016662941,3.61783,4388.1,4387.7,0.3334]
[1760016662942,3.84783,4388.1,4387.7,0.3334]
[1760016663241,11.78076293,4388.1,4387.2,0.3334]
[1760016663446,11.37073293,4388.1,4387.2,0.3334]
[1760016663645,6.37073293,4388.1,4387.2,0.33536763]
[1760016663841,0.41008,4387.6,4387.2,0.33536763]
[1760016664043,6.14073293,4388.1,4388.0,0.4633]
[1760016664243,3.4378,4388.1,4388.0,0.4633]
[1760016664643,3.4378,4388.1,4388.0,0.1299]
[1760016664944,3.4378,4388.1,4388.0,0.4633]
[1760016665343,3.2078,4388.1,4388.0,0.1299]
[1760016665548,3.2078,4388.1,4388.0,0.4633]
[1760016665749,3.4378,4388.1,4388.0,0.4633]
[1760016666049,3.4378,4388.1,4388.0,0.1299]
[1760016666248,3.4378,4388.1,4387.5,0.1299]
[1760016666249,3.84784,4388.1,4387.5,0.4633]
[1760016666546,0.41005,4388.0,4387.5,0.1299]
[1760016666746,0.23,4387.9,4387.5,0.53998]
[1760016667049,0.23,4387.9,4387.6,0.41007]
[1760016667350,0.23,4387.9,4387.8,0.3334]
[1760016667540,3.61783,4388.1,4388.0,0.87334]
[1760016667541,3.2078,4388.1,4388.0,0.87334]
[1760016667741,3.2078,4388.7,4388.5,0.1299]
[1760016667941,0.231,4388.6,4388.5,0.4633]
[1760016668247,3.2078,4389.3,4388.7,1.43493]
[1760016668446,3.2078,4389.3,4389.1,0.3334]
[1760016668650,3.2078,4389.3,4389.0,0.53984]
[1760016668651,3.2078,4389.3,4389.0,0.1299]
[1760016668842,3.16141327,4389.2,4389.1,0.3334]
[1760016669044,0.40994,4389.1,4388.5,0.4633]
[1760016669349,3.16141327,4389.2,4388.5,0.4633]
[1760016669551,0.231,4389.2,4389.1,0.3334]
[1760016669846,0.00218869,4390.2,4390.1,0.3334]
[1760016670453,0.00218869,4390.2,4390.0,0.1299]
[1760016670650,0.40988,4389.8,4389.6,0.3334]
[1760016670856,7.94883713,4390.2,4389.6,0.3334]
[1760016670857,3.4388,4389.7,4389.6,0.3334]
[1760016671053,3.2078,4389.7,4389.6,0.3334]
[1760016671253,3.4388,4389.7,4389.6,0.3334]
[1760016671751,3.20998869,4390.2,4390.0,0.1299]
[1760016671950,3.20998869,4390.2,4390.1,0.3334]
[1760016672152,0.00218869,4390.2,4390.1,0.3334]
[1760016672550,0.23318869,4390.2,4390.1,0.3334]
[1760016672750,0.64302869,4390.2,4390.0,0.1299]
[1760016672945,0.00218869,4390.2,4390.1,0.3477]
[1760016673250,0.23318869,4390.2,4390.1,0.3477]
[1760016673747,0.00218869,4390.2,4390.1,5.3477]
[1760016675753,0.00218869,4390.2,4390.1,0.3477]
[1760016677259,0.00218869,4390.2,4390.1,46.1477]
[1760016677456,0.00218869,4390.2,4390.1,0.01681707]
[1760016677645,0.00218869,4390.2,4389.5,0.1299]
[1760016677848,0.41202869,4390.2,4390.0,0.1341]
[1760016678146,0.231,4390.1,4390.0,0.54395]
[1760016678346,0.231,4390.1,4390.0,0.1341]
[1760016679254,0.231,4390.1,4389.3,3.2078]
[1760016679444,0.40991,4389.4,4389.3,3.2078]
[1760016679649,0.40991,4389.4,4389.3,3.5555]
[1760016679851,0.40994,4389.1,4388.8,0.3477]
[1760016680048,0.40993,4389.3,4389.0,0.3477]
[1760016680244,0.40992,4389.3,4389.1,0.3477]
[1760016680748,0.40992,4389.3,4389.0,0.54404]
[1760016680749,3.2078,4389.9,4389.6,0.3477]
[1760016680944,0.40988,4389.7,4389.1,0.3477]
[1760016681148,3.5459533,4389.8,4389.3,0.40992]
[1760016681359,0.40989,4389.7,4389.4,0.3477]
[1760016681562,0.231,4389.8,4389.0,1.15897]
[1760016681852,0.231,4389.7,4389.5,0.1341]
[1760016682053,0.231,4389.7,4389.6,0.3477]
[1760016682265,0.64089,4389.7,4389.5,0.1341]
[1760016682554,0.40989,4389.6,4389.3,0.3477]
[1760016682756,0.231,4389.7,4389.5,0.7576]
[1760016682953,0.231,4389.6,4389.5,0.3477]
[1760016683351,0.231,4389.6,4389.5,0.4818]
[1760016683551,3.2078,4389.9,4389.6,0.3477]
[1760016683751,0.63988,4389.8,4389.6,0.3477]
[1760016683949,0.23,4389.8,4389.6,0.3477]
[1760016684151,0.00218869,4390.2,4390.1,0.3477]
[1760016684456,3.2078,4391.0,4390.9,0.40977]
[1760016684659,3.2078,4391.0,4390.9,0.75747]
[1760016684862,3.2078,4392.1,4391.9,0.40967]
[1760016685158,0.022,4392.9,4392.5,0.54372]
[1760016685350,0.022,4392.9,4392.5,0.1341]
[1760016685550,0.02468619,4392.9,4392.8,0.3477]
[1760016686459,3.2078,4393.2,4392.8,0.3477]
[1760016686656,0.182,4393.3,4393.1,0.40956]
[1760016686857,0.182,4393.3,4393.2,0.3477]
[1760016687561,0.18432129,4393.3,4393.2,0.3477]
[1760016687855,0.18432129,4393.3,4393.1,0.40956]
[1760016687856,3.4378,4394.5,4394.0,0.1341]
[1760016688057,0.40947,4394.2,4393.5,0.89132]
[1760016688257,0.40948,4394.1,4393.5,0.89132]
[1760016688458,0.40949,4394.0,4393.7,3.2078]
[1760016688958,0.00268232,4394.0,4393.8,0.3477]
[1760016689154,0.00268232,4394.0,4393.9,0.75719]
[1760016689663,0.40935,4395.5,4394.8,0.3477]
[1760016689854,0.40937,4395.2,4395.1,3.5555]
[1760016690055,0.40938,4395.1,4394.5,3.6896]
[1760016690257,0.40939,4395.0,4394.5,3.3419]
[1760016690561,0.40936,4395.3,4395.0,0.1341]
[1760016690759,0.40937,4395.2,4395.0,3.3419]
[1760016691264,0.40937,4395.2,4394.1,0.3477]
[1760016691265,0.40946,4394.2,4394.1,0.3477]
[1760016691463,0.40946,4394.2,4393.9,3.2078]
[1760016691464,0.40948,4394.0,4393.9,3.2078]
[1760016692468,0.63946,4394.2,4393.9,3.2078]
[1760016692661,0.63948,4394.1,4393.9,3.2078]
[1760016692867,0.23,4394.0,4393.9,3.2078]
[1760016693067,3.23414467,4394.0,4393.9,3.2078]
[1760016693471,0.40954,4393.4,4393.3,3.2078]
[1760016693969,0.40954,4393.4,4392.5,0.13606761]
[1760016693970,0.40959,4392.8,4392.7,3.2078]
[1760016694170,0.63959,4392.8,4392.7,3.2078]
[1760016694864,0.40959,4392.8,4392.7,3.5555]
[1760016695169,0.40958,4392.9,4392.8,0.3477]
[1760016695362,0.63958,4392.9,4392.8,0.3477]
[1760016695759,0.40961,4392.6,4392.5,0.13606761]
[1760016695971,0.40961,4392.6,4392.5,0.00196761]
[1760016696171,5.40961,4392.6,4392.5,0.00196761]
[1760016696380,8.37460197,4392.6,4392.5,0.00196761]
[1760016696580,0.40965,4392.2,4392.1,3.2078]
[1760016696778,0.63965,4392.2,4392.1,3.2078]
[1760016696969,8.55052811,4392.2,4392.1,3.2078]
[1760016697176,8.55052811,4392.2,4392.1,2.5056]
[1760016697477,8.55052811,4392.2,4391.6,0.3477]
[1760016697478,0.4097,4391.7,4391.6,3.5555]
[1760016697679,0.40966,4392.1,4391.7,0.3477]
[1760016697876,0.0023852,4392.2,4392.1,0.3477]
[1760016698080,0.0023852,4392.2,4392.1,3.5555]
[1760016700284,0.40966,4392.1,4391.6,0.00174592]
[1760016700477,0.40975,4391.1,4391.0,3.3419]
[1760016700678,0.63975,4391.1,4391.0,3.3419]
[1760016701076,0.23,4391.1,4391.0,3.3419]
[1760016701775,0.23,4391.1,4391.0,3.34359199]
[1760016701979,3.2101852,4392.2,4391.1,0.40975]
[1760016702280,0.63966,4392.1,4392.0,0.4818]
[1760016702983,0.23,4392.1,4392.0,0.4818]
[1760016703179,3.18095695,4392.1,4392.0,0.4818]
[1760016703489,0.40975,4391.1,4391.0,3.67749199]
[1760016703687,0.63975,4391.1,4391.0,3.67749199]
[1760016703874,0.63975,4391.1,4391.0,3.34359199]
[1760016704080,3.5808557,4391.1,4391.0,3.34359199]
[1760016705177,3.5808557,4391.1,4391.0,3.70439199]
[1760016705880,12.4033157,4391.1,4390.6,0.3608]
[1760016706088,0.4098,4390.6,4390.5,0.1341]
[1760016706280,0.40984,4390.2,4390.1,0.3608]
[1760016706482,0.63984,4390.2,4390.1,0.3608]
[1760016706683,3.65755668,4390.2,4390.1,0.3608]
[1760016706880,3.65755668,4390.2,4390.1,0.36331705]
[1760016707183,3.01771668,4390.2,4390.1,0.36331705]
[1760016707378,3.61755,4391.1,4391.0,0.506]
[1760016707578,3.84755,4391.1,4391.0,0.506]
[1760016707788,6.81233941,4391.1,4391.0,0.506]
[1760016708686,6.17258941,4391.1,4391.0,0.506]
[1760016709084,3.4378,4391.1,4391.0,0.506]
[1760016709285,0.1821,4391.8,4391.5,0.1452]
[1760016709485,0.23,4391.7,4391.6,0.3608]
[1760016709681,0.1821,4391.8,4391.6,0.3608]
[1760016709881,0.1821,4391.8,4391.7,8.5686]
[1760016710282,0.0023852,4392.2,4391.7,8.5686]
[1760016710283,0.0023852,4392.2,4392.0,0.1452]
[1760016710482,0.0023852,4392.2,4392.1,0.3608]
[1760016711988,3.2078,4393.3,4393.1,0.3608]
[1760016712377,3.61735,4393.3,4393.1,0.3608]
[1760016712586,3.61735,4393.3,4393.0,0.1452]
[1760016712587,0.40956,4393.1,4393.0,0.1452]
[1760016712882,3.43830668,4393.1,4393.0,0.1452]
[1760016713082,3.02874668,4393.1,4393.0,0.506]
[1760016713279,0.232769,4393.1,4393.0,0.506]
[1760016714185,0.001769,4393.1,4393.0,0.506]
[1760016714887,0.231769,4393.1,4393.0,0.506]
[1760016715087,0.40961,4392.6,4392.5,0.1452]
[1760016715393,0.63961,4392.6,4392.5,0.1452]
[1760016715991,0.001769,4393.1,4393.0,0.1452]
[1760016716177,0.641329,4393.1,4393.0,0.1452]
[1760016716385,0.001769,4393.1,4393.0,0.1452]
[1760016717081,0.001769,4393.1,4393.0,0.506]
[1760016717995,0.411329,4393.1,4393.0,0.506]
[1760016721087,0.40961,4392.6,4392.5,0.1452]
[1760016721287,1.02417,4392.1,4390.9,0.3608]
[1760016721485,0.40976,4391.0,4390.9,0.3608]
[1760016721889,0.40975,4391.1,4391.0,0.1452]
[1760016722087,0.40975,4391.1,4391.0,0.506]
[1760016723192,0.23,4391.2,4391.1,0.3608]
[1760016723785,0.40975,4391.1,4391.0,0.1452]
[1760016724087,1.02448,4390.7,4390.0,0.1452]
[1760016724286,0.40984,4390.2,4389.5,0.506]
[1760016724682,3.40617612,4390.2,4389.5,0.506]
[1760016725091,8.40617612,4390.2,4390.1,7.05e-06]
[1760016725691,3.63617612,4390.2,4390.1,7.05e-06]
[1760016725889,8.63617612,4390.2,4390.1,7.05e-06]
[1760016727095,0.40998,4388.6,4388.5,0.1452]
[1760016727395,0.40994,4389.1,4389.0,0.1452]
[1760016727594,0.40992,4389.3,4389.1,0.3608]
[1760016727790,0.23,4389.2,4389.1,0.3608]
[1760016727986,6.16949443,4389.9,4389.1,0.3608]
[1760016727987,3.2078,4389.9,4389.5,0.1452]
[1760016728195,0.40985,4390.1,4390.0,0.1452]
[1760016728395,3.84765,4390.1,4390.0,0.506]
[1760016728593,3.44040434,4390.1,4390.0,0.506]
[1760016729397,0.00260434,4390.1,4390.0,0.506]
[1760016729694,0.23260434,4390.1,4390.0,0.506]
[1760016729891,3.44040434,4390.1,4389.5,0.506]
[1760016730092,0.40989,4389.6,4389.5,0.1452]
[1760016730393,0.40993,4389.2,4389.1,0.36300216]
[1760016730595,0.64093,4389.2,4389.1,0.36300216]
[1760016731193,0.231,4389.2,4389.1,0.36300216]
[1760016731393,3.6177,4389.6,4389.5,0.506]
[1760016731694,3.8477,4389.6,4389.5,0.1452]
[1760016731900,3.6177,4389.6,4389.5,0.506]
[1760016732193,3.21040434,4390.1,4389.6,0.3608]
[1760016732391,0.23,4390.0,4389.5,0.1452]
[1760016732598,0.40993,4389.2,4389.1,0.38430216]
[1760016732994,0.23,4389.4,4389.2,0.3821]
[1760016733592,0.23,4389.4,4389.1,0.00220216]
[1760016733593,0.23,4389.4,4389.3,0.3821]
[1760016733901,3.62024434,4390.1,4390.0,0.5299]
[1760016734192,3.85024434,4390.1,4390.0,0.5299]
[1760016734394,3.62024434,4390.1,4390.0,0.5299]
[1760016734699,0.23260434,4390.1,4390.0,0.5299]
[1760016734997,3.44040434,4390.1,4390.0,0.1478]
[1760016736401,3.44040434,4390.1,4389.5,0.5299]
[1760016736593,3.44040434,4390.1,4390.0,0.5299]
[1760016737095,1.02467,4389.9,4389.1,0.00220216]
[1760016737299,11.41970426,4390.1,4389.6,0.3821]
[1760016737300,0.23,4389.8,4389.6,0.3821]
[1760016737495,3.62024434,4390.1,4390.0,0.5299]
[1760016737697,3.21040434,4390.1,4390.0,0.5299]
[1760016737888,0.23260434,4390.1,4390.0,0.5299]
[1760016738092,0.00260434,4390.1,4390.0,0.5299]
[1760016738292,0.23260434,4390.1,4390.0,0.5299]
[1760016738492,0.00260434,4390.1,4390.0,5.5299]
[1760016738702,0.40976,4391.0,4390.6,0.3821]
[1760016738894,0.63977,4390.9,4390.5,0.1478]
[1760016739096,0.40979,4390.7,4390.6,0.3821]
[1760016739297,0.40984,4390.2,4390.1,0.3821]
[1760016739497,0.63984,4390.2,4390.1,0.3821]
[1760016739801,0.64185075,4390.2,4390.1,0.3821]
[1760016740801,0.23201075,4390.2,4390.1,0.3821]
[1760016741704,0.00201075,4390.2,4390.1,0.3821]
[1760016744105,3.2078,4390.7,4390.1,0.3821]
[1760016744106,3.61754,4391.2,4391.1,0.3506]
[1760016744304,3.2078,4391.2,4391.1,0.3506]
[1760016744502,3.2078,4391.9,4391.5,0.1436]
[1760016744701,0.4097,4391.7,4391.6,0.3506]
[1760016744898,0.23,4391.8,4391.7,0.3506]
[1760016744899,2.94188053,4391.8,4391.7,0.3506]
[1760016745203,0.00161976,4391.8,4391.7,0.3506]
[1760016745397,0.00161976,4391.8,4391.7,5.3506]
[1760016746011,0.00161976,4391.8,4391.7,0.3506]
[1760016746301,1.02426,4391.7,4390.6,3.2078]
[1760016746502,0.40978,4390.8,4390.7,0.3506]
[1760016746703,0.40984,4390.1,4389.6,0.3506]
[1760016746908,0.23,4390.1,4389.6,0.3506]
[1760016747206,0.40986,4390.0,4389.6,0.3506]
[1760016747503,0.23,4390.1,4390.0,0.1436]
[1760016747705,0.40988,4389.8,4389.6,0.3506]
[1760016747906,0.63989,4389.7,4389.5,0.1436]
[1760016748104,0.23,4389.7,4389.6,0.3506]
[1760016748508,0.40984,4390.1,4390.0,0.4942]
[1760016748705,0.40989,4389.6,4389.5,0.1436]
[1760016749009,0.40992,4389.3,4389.2,0.3506]
[1760016749204,0.40992,4389.3,4389.1,0.00220216]
[1760016749412,6.02483,4389.2,4387.9,3.5811902]
[1760016749704,0.41003,4388.2,4387.9,3.5811902]
[1760016749912,0.23,4388.1,4388.0,0.4942]
[1760016750410,0.41004,4388.0,4387.9,0.0227902]
[1760016750612,0.41004,4388.0,4387.9,0.02532966]
[1760016750908,3.38833832,4388.0,4387.9,0.02532966]
[1760016751311,1.02517,4387.8,4386.5,0.1436]
[1760016751510,0.41012,4387.2,4387.0,0.1436]
[1760016751810,0.41025,4385.9,4385.0,0.1436]
[1760016752004,0.231,4385.8,4385.6,0.3506]
[1760016752201,0.231,4385.8,4385.6,0.35316614]
[1760016752400,0.231,4385.8,4385.7,0.3506]
[1760016752613,3.2078,4385.9,4385.7,0.3506]
[1760016752802,3.61801,4386.3,4386.1,0.3506]
[1760016753004,3.2078,4386.3,4386.0,0.1436]
[1760016753206,3.2078,4387.0,4386.1,0.3506]
[1760016753407,0.41017,4386.7,4386.1,0.3506]
[1760016753613,0.41016,4386.8,4386.1,0.3506]
[1760016753809,3.19953487,4386.9,4386.1,0.3506]
[1760016754009,0.41015,4386.8,4386.1,0.3506]
[1760016754213,0.41017,4386.6,4386.5,0.4942]
[1760016754406,2.899252,4386.7,4386.6,0.3506]
[1760016754603,3.2078,4387.5,4386.5,0.1436]
[1760016754814,0.231,4387.4,4387.0,0.1436]
[1760016755109,0.231,4387.4,4387.1,0.3506]
[1760016755308,0.6411,4387.4,4387.0,0.1436]
[1760016755514,0.4101,4387.4,4387.0,0.1436]
[1760016755709,3.2078,4387.5,4387.1,0.3506]
[1760016755910,0.231,4387.4,4387.0,0.1436]
[1760016756314,0.231,4387.3,4387.0,0.1436]
[1760016756606,0.231,4387.2,4387.1,0.3506]
[1760016756814,3.2078,4387.5,4387.0,0.1436]
[1760016757017,0.231,4387.2,4387.1,0.3506]
[1760016757409,3.2078,4387.5,4387.2,0.3506]
[1760016757612,3.2078,4387.5,4387.4,0.3506]
[1760016758006,3.4388,4387.5,4387.4,0.3506]
[1760016758207,3.4388,4387.5,4387.0,0.4942]
[1760016758407,0.41012,4387.2,4387.1,0.3506]
[1760016758808,3.2078,4387.5,4387.1,0.3506]
[1760016759008,0.231,4387.4,4387.1,0.3506]
[1760016759214,3.2078,4387.5,4387.1,0.3506]
[1760016759413,0.231,4387.7,4387.5,0.1436]
[1760016759610,0.231,4387.7,4387.6,0.3506]
[1760016760213,0.231,4387.7,4387.6,0.41007]
[1760016760509,0.00183598,4388.1,4388.0,0.1436]
[1760016760711,0.16,4388.7,4388.6,0.3506]
[1760016761713,0.16176596,4388.7,4388.6,0.3506]
[1760016761915,0.23276596,4388.7,4388.6,0.3506]
[1760016762314,0.64274596,4388.7,4388.6,0.3506]
[1760016762711,0.23276596,4388.7,4388.6,0.3506]
[1760016763715,0.00176596,4388.7,4388.6,0.3506]
[1760016763915,0.00176596,4388.7,4388.6,5.3506]
[1760016764121,0.00176596,4388.7,4388.6,0.3506]
[1760016768022,0.00176596,4388.7,4388.6,3.5584]
[1760016768325,0.1822,4389.1,4389.0,0.91945]
[1760016768721,3.2078,4389.7,4389.6,0.3734]
[1760016768924,3.4388,4389.7,4389.6,0.3734]
[1760016769228,3.44096089,4389.7,4389.6,0.37598894]
[1760016769522,3.20996089,4389.7,4389.6,0.37598894]
[1760016770023,0.00216089,4389.7,4389.6,0.37598894]
[1760016770923,3.20996089,4389.7,4389.6,0.00258894]
[1760016771122,0.40998,4388.6,4388.5,0.517]
[1760016771721,0.40998,4388.6,4388.5,0.1436]
[1760016772116,0.40998,4388.6,4388.5,0.51917081]
[1760016772827,1.02501,4388.5,4387.5,3.7173]
[1760016773027,0.41008,4387.6,4387.5,3.7173]
[1760016773330,0.64108,4387.6,4387.5,3.7173]
[1760016773522,0.64108,4387.6,4387.5,0.5095]
[1760016773926,0.64108,4387.6,4387.5,0.13821569]
[1760016774221,0.64108,4387.6,4387.5,0.00211569]
[1760016774426,3.53613575,4387.6,4387.5,0.00211569]
[1760016775027,8.53613575,4387.6,4387.5,0.00211569]
[1760016775227,8.53613575,4387.6,4387.5,1.569e-05]
[1760016775435,0.41017,4386.6,4386.5,0.5095]
[1760016775727,0.41019,4386.4,4386.1,0.3734]
[1760016775933,3.24307029,4386.6,4385.6,3.2078]
[1760016775934,3.65324029,4386.6,4386.5,0.5095]
[1760016776127,6.86104029,4386.6,4386.5,0.5095]
[1760016776334,3.21068136,4386.6,4386.5,0.512092]
[1760016776536,3.85185136,4386.6,4386.5,0.512092]
[1760016778334,3.44168136,4386.6,4386.5,0.512092]
[1760016778535,3.44168136,4386.6,4386.5,0.138692]
[1760016778727,3.44168136,4386.6,4386.5,0.002592]
[1760016779536,3.2078,4384.9,4383.0,0.1361]
[1760016779725,0.41049,4383.2,4382.5,0.1361]
[1760016779926,2.9601247,4384.8,4382.5,0.1361]
[1760016780131,2.9601247,4383.1,4383.0,0.1361]
[1760016780338,3.4388,4383.1,4383.0,0.5095]
[1760016780531,3.20965205,4383.1,4383.0,0.51122689]
[1760016780730,0.00185205,4383.1,4383.0,0.51122689]
[1760016780933,0.23285205,4383.1,4383.0,0.51122689]
[1760016781232,3.2078,4383.6,4383.5,0.5095]
[1760016781435,0.231,4384.0,4383.6,0.3734]
[1760016781634,0.231,4383.9,4383.6,0.3734]
[1760016781931,2.92667907,4384.6,4384.5,0.5095]
[1760016782135,0.231,4384.6,4384.5,0.5095]
[1760016782343,0.23300995,4384.6,4384.5,0.5095]
[1760016782642,0.00200995,4384.6,4384.5,0.5095]
[1760016782838,0.23300995,4384.6,4384.5,0.5095]
[1760016783030,0.23300995,4384.6,4384.5,0.51990077]
[1760016783335,0.00200995,4384.6,4384.5,0.51990077]